[Event "CZE National Open 2020"]
[Site "Kouty nad Desnou"]
[Date "2020.03.09"]
[Round "4.4"]
[White "Sedy, Matej"]
[Black "Klabenes, Petr"]
[Result "1-0"]
[ECO "B30"]
[WhiteElo "1443"]
[BlackElo "1672"]
[Annotator "NA"]
[PlyCount "89"]
[EventDate "2020.03.07"]
[EventCountry "CZE"]
[SourceTitle "playchess.com"]
[Source "ChessBase"]
[SourceQuality "1"]
[TimeControl "5400+30"]

1. e4 {[%emt 0:00:00]} c5 {[%emt 0:00:00]} 2. Nf3 {[%emt 0:00:33]} Nc6 {[%emt 0:00:09]} 3. c4 {[%emt 0:00:40]} e5 {[%emt 0:00:35]} 4. Nc3 {[%emt 0:02:28]} g6 {[%emt 0:01:54]} 5. Be2 {[%emt 0:03:06]} Bg7 {[%emt 0:00:48]} 6. O-O {[%emt 0:01:44]} d6 7. h3 {[%emt 0:03:59]} Nge7 {[%emt 0:02:35]} 8. d3 {[%emt 0:02:04]} O-O {[%emt 0:01:12]} 9. Nd5 {[%emt 0:07:58]} Nxd5 {[%emt 0:05:56]} 10. cxd5 {[%emt 0:00:37]} Nd4 {[%emt 0:00:54]} 11. Bd2 {[%emt 0:03:49]} f5 {[%emt 0:02:30]} 12. b4 {[%emt 0:02:13]} b6 {[%emt 0:01:12]} 13. Nxd4 {[%emt 0:06:58]} cxd4 {[%emt 0:02:54]} 14. b5 {[%emt 0:02:47]} Bd7 {[%emt 0:02:29]} 15. a4 {[%emt 0:01:39]} Rc8 {[%emt 0:03:20]} 16. Qb3 {[%emt 0:02:07]} f4 {[%emt 0:02:25]} 17. Bf3 {[%emt 0:04:59]} Qg5 {[%emt 0:03:07]} 18. Kh2 {[%emt 0:02:35]} Qh6 {[%emt 0:03:15]} 19. Rfc1 {[%emt 0:06:54]} g5 {[%emt 0:00:38]} 20. Qd1 {[%emt 0:01:31]} Qh4 {[%emt 0:01:25]} 21. Kg1 {[%emt 0:03:03]} Bf6 {[%emt 0:07:18]} 22. Bg4 {[%emt 0:08:21]} Bxg4 {[%emt 0:00:54]} 23. Qxg4 {[%emt 0:01:00]} Qxg4 {[%emt 0:00:11]} 24. hxg4 {[%emt 0:00:10]} Kf7 {[%emt 0:01:56]} 25. Rc6 {[%emt 0:01:41]} Rxc6 {[%emt 0:00:51]} 26. bxc6 {[%emt 0:02:16]} Bd8 {[%emt 0:01:15]} 27. a5 {[%emt 0:01:50]} b5 {[%emt 0:03:24]} 28. a6 {[%emt 0:00:32]} Bb6 {[%emt 0:06:15]} 29. Ba5 {[%emt 0:01:08]} Ke7 {[%emt 0:01:00]} 30. Bxb6 {[%emt 0:01:30]} axb6 {[%emt 0:00:21]} 31. a7 {[%emt 0:01:04]} Ra8 {[%emt 0:00:15]} 32. Ra6 {[%emt 0:02:46]} Kd8 {[%emt 0:00:31]} 33. Kf1 {[%emt 0:00:55]} Kc7 {[%emt 0:01:49]} 34. Ke1 {[%emt 0:00:57]} b4 {[%emt 0:04:50]} 35. Kd1 {[%emt 0:00:38]} b3 {[%emt 0:00:47]} 36. Kc1 {[%emt 0:00:29]} b5 {[%emt 0:01:51]} 37. Kb2 {[%emt 0:00:31]} Kc8 {[%emt 0:01:59]} 38. Kxb3 {[%emt 0:00:33]} Kc7 {[%emt 0:00:15]} 39. Kb4 {[%emt 0:00:29]} Kc8 {[%emt 0:00:08]} 40. Kxb5 {[%emt 0:00:16]} Kc7 {[%emt 0:00:06]} 41. Ka5 {[%emt 0:00:48]} h5 {[%emt 0:00:56]} 42. gxh5 {[%emt 0:01:22]} g4 {[%emt 0:00:09]} 43. h6 {[%emt 0:01:46]} f3 {[%emt 0:01:05]} 44. g3 {[%emt 0:00:55]} Rh8 {[%emt 0:00:24]} 45. Rb6 {[%emt 0:00:42]} 1-0

[Event "CZE National Open 2020"]
[Site "Kouty nad Desnou"]
[Date "2020.03.09"]
[Round "4.5"]
[White "Steinbauer, Sebastian"]
[Black "Vcela, Martin"]
[Result "1-0"]
[ECO "B20"]
[WhiteElo "1527"]
[BlackElo "1307"]
[Annotator "NA"]
[PlyCount "87"]
[EventDate "2020.03.07"]
[EventCountry "CZE"]
[SourceTitle "playchess.com"]
[Source "ChessBase"]
[SourceQuality "1"]
[TimeControl "5400+30"]

1. e4 {[%emt 0:00:00]} c5 {[%emt 0:00:00]} 2. d4 {[%emt 0:00:02]} cxd4 {[%emt 0:00:00]} 3. c4 dxc3 {[%emt 0:00:21]} 4. Nxc3 {[%emt 0:00:14]} Nc6 {[%emt 0:00:18]} 5. Bc4 {[%emt 0:00:07]} d6 {[%emt 0:00:29]} 6. Nf3 {[%emt 0:00:11]} Nf6 {[%emt 0:00:29]} 7. e5 {[%emt 0:00:18]} Nd7 {[%emt 0:00:40]} 8. exd6 {[%emt 0:02:13]} exd6 {[%emt 0:00:17]} 9. O-O {[%emt 0:01:35]} Be7 {[%emt 0:00:09]} 10. Nd5 {[%emt 0:01:08]} O-O {[%emt 0:00:44]} 11. Nxe7+ {[%emt 0:00:27]} Qxe7 {[%emt 0:00:47]} 12. Re1 {[%emt 0:00:17]} Qd8 {[%emt 0:01:40]} 13. Bd2 {[%emt 0:02:54]} Nb6 {[%emt 0:02:11]} 14. Bd3 {[%emt 0:01:34]} Bg4 {[%emt 0:01:23]} 15. Qc2 {[%emt 0:03:32]} Bxf3 {[%emt 0:03:35]} 16. Bxh7+ {[%emt 0:00:29]} Kh8 {[%emt 0:00:10]} 17. gxf3 {[%emt 0:00:15]} g6 {[%emt 0:00:33]} 18. Bxg6 {[%emt 0:00:31]} fxg6 {[%emt 0:00:10]} 19. Rad1 {[%emt 0:04:12]} Kh7 {[%emt 0:02:27]} 20. Bc3 {[%emt 0:02:28]} Qg5+ {[%emt 0:00:44]} 21. Kh1 {[%emt 0:01:03]} Ne5 {[%emt 0:06:09]} 22. Rg1 {[%emt 0:01:44]} Qh5 {[%emt 0:00:57]} 23. Rde1 {[%emt 0:04:39]} Qxf3+ {[%emt 0:07:42]} 24. Rg2 {[%emt 0:00:31]} Rae8 {[%emt 0:07:11]} 25. Bxe5 {[%emt 0:00:32]} Rf5 {[%emt 0:03:17]} 26. Qc7+ {[%emt 0:01:04]} Rf7 {[%emt 0:01:17]} 27. Qxd6 {[%emt 0:00:14]} Qc6 {[%emt 0:04:15]} 28. Qd3 {[%emt 0:04:01]} Rxe5 {[%emt 0:03:48]} 29. Rxe5 {[%emt 0:00:26]} Rxf2 {[%emt 0:02:15]} 30. Re7+ {[%emt 0:03:11]} Kg8 {[%emt 0:03:12]} 31. Qxg6+ {[%emt 0:01:07]} Qxg6 {[%emt 0:00:10]} 32. Rxg6+ {[%emt 0:00:19]} Kf8 {[%emt 0:00:09]} 33. Rxb7 {[%emt 0:00:17]} Rxb2 {[%emt 0:00:18]} 34. Rxa7 {[%emt 0:00:59]} Nd5 {[%emt 0:00:44]} 35. Rg2 {[%emt 0:03:29]} Rb1+ {[%emt 0:01:05]} 36. Rg1 {[%emt 0:00:13]} Rb6 {[%emt 0:00:14]} 37. Rd1 {[%emt 0:00:50]} Nf6 {[%emt 0:00:47]} 38. Rd8+ {[%emt 0:00:20]} Ne8 {[%emt 0:00:21]} 39. Raa8 {[%emt 0:00:12]} Re6 {[%emt 0:00:27]} 40. Rxe8+ {[%emt 0:00:29]} Rxe8 {[%emt 0:00:08]} 41. Rxe8+ {[%emt 0:00:07]} Kxe8 {[%emt 0:00:07]} 42. Kg2 {[%emt 0:00:06]} Kd7 {[%emt 0:00:05]} 43. h4 {[%emt 0:00:12]} Ke6 {[%emt 0:00:20]} 44. Kg3 {[%emt 0:00:16]} 1-0

[Event "CZE National Open 2020"]
[Site "Kouty nad Desnou"]
[Date "2020.03.09"]
[Round "4.6"]
[White "Sichrovsky, Tomas"]
[Black "Cipl, Jan"]
[Result "1/2-1/2"]
[ECO "D41"]
[WhiteElo "1470"]
[BlackElo "1526"]
[Annotator "NA"]
[PlyCount "50"]
[EventDate "2020.03.07"]
[EventCountry "CZE"]
[SourceTitle "playchess.com"]
[Source "ChessBase"]
[SourceQuality "1"]
[TimeControl "5400+30"]

1. d4 {[%emt 0:00:00]} d5 {[%emt 0:00:08]} 2. c4 {[%emt 0:00:00]} e6 {[%emt 0:01:06]} 3. Nc3 {[%emt 0:00:00]} Nf6 {[%emt 0:01:07]} 4. Nf3 {[%emt 0:00:10]} c5 {[%emt 0:06:10]} 5. cxd5 {[%emt 0:01:11]} exd5 {[%emt 0:00:43]} 6. Bg5 {[%emt 0:01:21]} Be6 {[%emt 0:11:49]} 7. g3 {[%emt 0:03:50]} Nc6 {[%emt 0:03:43]} 8. Bxf6 {[%emt 0:05:28]} Qxf6 {[%emt 0:00:38]} 9. dxc5 {[%emt 0:00:49]} Bxc5 {[%emt 0:00:25]} 10. Bg2 {[%emt 0:01:09]} O-O {[%emt 0:02:10]} 11. O-O {[%emt 0:00:15]} Rad8 {[%emt 0:00:41]} 12. Qa4 {[%emt 0:01:55]} a6 {[%emt 0:01:31]} 13. Rac1 {[%emt 0:01:35]} Ba7 {[%emt 0:00:17]} 14. e3 {[%emt 0:06:00]} Rfe8 {[%emt 0:07:50]} 15. Rfd1 {[%emt 0:21:10]} d4 {[%emt 0:29:52]} 16. exd4 {[%emt 0:05:42]} Bg4 {[%emt 0:04:13]} 17. Rd3 {[%emt 0:12:38]} Bxf3 {[%emt 0:06:35]} 18. Rxf3 {[%emt 0:01:36]} Qxd4 {[%emt 0:01:17]} 19. Qb3 {[%emt 0:01:43]} Ne5 {[%emt 0:02:00]} 20. Rf4 {[%emt 0:01:03]} Qd7 {[%emt 0:03:58]} 21. Rd1 {[%emt 0:07:46]} Qe7 {[%emt 0:05:16]} 22. Rxd8 {[%emt 0:02:15]} Rxd8 {[%emt 0:00:24]} 23. Nd5 {[%emt 0:03:31]} Qc5 {[%emt 0:03:45]} 24. Nc3 {[%emt 0:03:45]} b5 {[%emt 0:01:05]} 25. Bd5 Rd7 1/2-1/2

[Event "CZE National Open 2020"]
[Site "Kouty nad Desnou"]
[Date "2020.03.09"]
[Round "4.7"]
[White "Svacina, Tobias"]
[Black "Hobza, Radek"]
[Result "1-0"]
[ECO "C02"]
[WhiteElo "1601"]
[BlackElo "1334"]
[Annotator "NA"]
[PlyCount "63"]
[EventDate "2020.03.07"]
[EventCountry "CZE"]
[SourceTitle "playchess.com"]
[Source "ChessBase"]
[SourceQuality "1"]
[TimeControl "5400+30"]

1. e4 {[%emt 0:00:00]} e6 {[%emt 0:00:00]} 2. d4 {[%emt 0:00:00]} d5 {[%emt 0:00:00]} 3. e5 {[%emt 0:00:00]} c5 {[%emt 0:00:14]} 4. c3 {[%emt 0:00:27]} Nc6 {[%emt 0:00:38]} 5. Nf3 {[%emt 0:00:41]} Qb6 {[%emt 0:01:23]} 6. Be2 {[%emt 0:01:00]} cxd4 {[%emt 0:02:01]} 7. cxd4 {[%emt 0:00:07]} Nge7 {[%emt 0:01:42]} 8. Na3 {[%emt 0:00:35]} Nf5 {[%emt 0:03:17]} 9. Nc2 {[%emt 0:00:12]} Bb4+ {[%emt 0:01:57]} 10. Kf1 {[%emt 0:01:02]} Be7 {[%emt 0:02:29]} 11. h4 {[%emt 0:02:32]} h5 {[%emt 0:06:09]} 12. g3 {[%emt 0:03:06]} Bd7 {[%emt 0:01:56]} 13. Kg2 {[%emt 0:02:11]} f6 {[%emt 0:10:13]} 14. Bd3 {[%emt 0:06:15]} g6 {[%emt 0:07:10]} 15. Re1 {[%emt 0:09:55]} O-O-O {[%emt 0:01:00]} 16. exf6 {[%emt 0:01:53]} Bxf6 {[%emt 0:00:16]} 17. Bg5 {[%emt 0:00:19]} Rdf8 {[%emt 0:07:26]} 18. Bxf5 {[%emt 0:03:50]} gxf5 {[%emt 0:04:18]} 19. Qd2 {[%emt 0:01:25]} Rhg8 {[%emt 0:05:10]} 20. b4 {[%emt 0:07:31]} Bxg5 {[%emt 0:09:37]} 21. Nxg5 {[%emt 0:00:50]} Rf6 {[%emt 0:00:42]} 22. Qf4 {[%emt 0:05:42]} Qc7 {[%emt 0:03:07]} 23. Nh3 {[%emt 0:08:46]} Rg4 {[%emt 0:02:36]} 24. Qxc7+ {[%emt 0:00:54]} Kxc7 {[%emt 0:00:09]} 25. Nf4 {[%emt 0:00:29]} Ne7 {[%emt 0:02:00]} 26. Ne3 {[%emt 0:01:30]} Rg8 {[%emt 0:01:43]} 27. Kh2 {[%emt 0:05:45]} Rh6 {[%emt 0:01:07]} 28. Re2 {[%emt 0:03:28]} Ng6 {[%emt 0:01:49]} 29. Neg2 {[%emt 0:00:21]} Kd6 {[%emt 0:01:05]} 30. Rc1 {[%emt 0:01:44]} Bb5 {[%emt 0:00:26]} 31. Rxe6+ {[%emt 0:00:39]} Kd7 {[%emt 0:00:20]} 32. Rce1 {[%emt 0:01:02]} 1-0

[Event "CZE National Open 2020"]
[Site "Kouty nad Desnou"]
[Date "2020.03.09"]
[Round "4.8"]
[White "Jun, Rostislav"]
[Black "Zaza, Martin"]
[Result "0-1"]
[ECO "C22"]
[WhiteElo "1342"]
[BlackElo "1574"]
[Annotator "NA"]
[PlyCount "54"]
[EventDate "2020.03.07"]
[EventCountry "CZE"]
[SourceTitle "playchess.com"]
[Source "ChessBase"]
[SourceQuality "1"]
[TimeControl "5400+30"]

1. e4 e5 2. d4 exd4 3. Qxd4 Nc6 4. Qe3 Nf6 5. Nc3 Bb4 6. Bd2 O-O 7. O-O-O Re8 8. Bd3 d5 9. Qe1 d4 10. Nb1 Bxd2+ 11. Nxd2 Be6 12. Kb1 Nb4 13. b3 Nxd3 14. cxd3 a5 15. Rc1 a4 16. Qd1 axb3 17. axb3 Qe7 18. Qc2 Ra6 19. Qb2 Rea8 20. Ngf3 c5 21. h3 b5 22. Rc2 Qa7 23. Kc1 Ra1+ 24. Nb1 Ra2 25. Qxa2 Qxa2 26. Rxa2 Rxa2 27. Nfd2 Nd7 0-1

[Event "CZE National Open 2020"]
[Site "Kouty nad Desnou"]
[Date "2020.03.09"]
[Round "4.9"]
[White "Pejrimovsky, Tadeas Rubel"]
[Black "Mrazek, Adam"]
[Result "1-0"]
[ECO "B20"]
[WhiteElo "1502"]
[BlackElo "1259"]
[Annotator "NA"]
[PlyCount "43"]
[EventDate "2020.03.07"]
[EventCountry "CZE"]
[SourceTitle "playchess.com"]
[Source "ChessBase"]
[SourceQuality "1"]
[TimeControl "5400+30"]

1. e4 {[%emt 0:00:00]} c5 {[%emt 0:00:00]} 2. b4 {[%emt 0:00:00]} cxb4 {[%emt 0:00:00]} 3. a3 {[%emt 0:00:22]} d5 {[%emt 0:00:00]} 4. exd5 {[%emt 0:01:47]} Qxd5 5. Nf3 {[%emt 0:01:56]} e5 {[%emt 0:01:29]} 6. c4 {[%emt 0:02:58]} Qe6 {[%emt 0:04:21]} 7. Bd3 {[%emt 0:02:58]} e4 {[%emt 0:30:40]} 8. O-O {[%emt 0:00:59]} Qf6 {[%emt 0:01:19]} 9. Bxe4 {[%emt 0:02:13]} Qxa1 {[%emt 0:01:59]} 10. Qb3 {[%emt 0:03:47]} Qf6 {[%emt 0:04:06]} 11. axb4 {[%emt 0:01:04]} Bd6 {[%emt 0:12:44]} 12. Bb2 {[%emt 0:04:05]} Qh6 {[%emt 0:01:08]} 13. c5 {[%emt 0:03:23]} Bc7 {[%emt 0:08:29]} 14. Bd5 {[%emt 0:02:00]} Qg6 {[%emt 0:08:04]} 15. Re1+ {[%emt 0:03:41]} Ne7 {[%emt 0:01:13]} 16. Nh4 {[%emt 0:03:05]} Qh5 {[%emt 0:03:15]} 17. Bxg7 {[%emt 0:01:36]} Qxh4 {[%emt 0:17:19]} 18. Bxf7+ {[%emt 0:00:43]} Kd8 {[%emt 0:00:09]} 19. g3 {[%emt 0:00:57]} Qg5 {[%emt 0:01:47]} 20. Bxh8 {[%emt 0:01:30]} Nbc6 {[%emt 0:00:31]} 21. Qd3+ {[%emt 0:01:17]} Bd7 {[%emt 0:00:30]} 22. Be6 {[%emt 0:00:25]} 1-0

[Event "CZE National Open 2020"]
[Site "Kouty nad Desnou"]
[Date "2020.03.10"]
[Round "5.2"]
[White "Vyhnalek, Jan"]
[Black "Sedy, Matej"]
[Result "1/2-1/2"]
[ECO "A13"]
[WhiteElo "1528"]
[BlackElo "1443"]
[Annotator "NA"]
[PlyCount "97"]
[EventDate "2020.03.07"]
[EventCountry "CZE"]
[SourceTitle "playchess.com"]
[Source "ChessBase"]
[SourceQuality "1"]
[TimeControl "5400+30"]

1. c4 {[%emt 0:00:00]} e6 {[%emt 0:00:07]} 2. Nf3 {[%emt 0:01:09]} Nf6 {[%emt 0:01:23]} 3. g3 {[%emt 0:00:37]} d5 {[%emt 0:03:24]} 4. cxd5 {[%emt 0:00:56]} exd5 {[%emt 0:01:00]} 5. Bg2 {[%emt 0:00:38]} Be7 {[%emt 0:06:40]} 6. O-O {[%emt 0:00:38]} O-O {[%emt 0:01:38]} 7. d3 {[%emt 0:05:11]} Re8 {[%emt 0:06:49]} 8. b3 {[%emt 0:05:04]} c6 {[%emt 0:03:17]} 9. Bb2 {[%emt 0:03:26]} Bd6 {[%emt 0:03:41]} 10. Qc2 {[%emt 0:01:23]} Bg4 {[%emt 0:02:45]} 11. Nc3 {[%emt 0:04:20]} Bb4 {[%emt 0:09:16]} 12. a3 {[%emt 0:00:56]} Bf8 {[%emt 0:03:09]} 13. Rad1 {[%emt 0:01:35]} d4 {[%emt 0:04:15]} 14. Ne4 {[%emt 0:03:31]} Nxe4 {[%emt 0:03:02]} 15. dxe4 {[%emt 0:00:09]} c5 {[%emt 0:00:18]} 16. e3 {[%emt 0:04:49]} Nc6 {[%emt 0:01:36]} 17. exd4 {[%emt 0:02:32]} Bxf3 {[%emt 0:01:26]} 18. Bxf3 {[%emt 0:00:21]} cxd4 {[%emt 0:00:10]} 19. Be2 {[%emt 0:05:49]} Rc8 {[%emt 0:02:48]} 20. Qb1 {[%emt 0:00:36]} Bc5 {[%emt 0:03:16]} 21. b4 {[%emt 0:03:32]} Bb6 {[%emt 0:00:30]} 22. Kg2 {[%emt 0:00:44]} Qf6 {[%emt 0:03:04]} 23. Rd2 {[%emt 0:02:34]} Rcd8 {[%emt 0:02:47]} 24. f3 {[%emt 0:04:07]} Re6 {[%emt 0:06:33]} 25. Rfd1 {[%emt 0:00:40]} Red6 {[%emt 0:00:34]} 26. Qa1 {[%emt 0:00:45]} g5 {[%emt 0:04:53]} 27. Qa2 {[%emt 0:06:31]} Ne5 {[%emt 0:03:02]} 28. Qb3 {[%emt 0:00:55]} a6 {[%emt 0:03:13]} 29. Bc4 {[%emt 0:06:05]} Nxc4 {[%emt 0:01:49]} 30. Qxc4 {[%emt 0:00:31]} R8d7 {[%emt 0:01:32]} 31. Qe2 {[%emt 0:01:46]} Qe7 {[%emt 0:02:42]} 32. Qc4 {[%emt 0:03:54]} Qf6 {[%emt 0:01:23]} 33. Qb3 {[%emt 0:00:26]} Qe5 {[%emt 0:01:56]} 34. Qd3 {[%emt 0:03:21]} Rd8 {[%emt 0:01:09]} 35. Qe2 {[%emt 0:00:15]} h6 {[%emt 0:01:02]} 36. Rd3 {[%emt 0:00:41]} R8d7 {[%emt 0:02:03]} 37. Kh1 {[%emt 0:01:27]} Rd8 {[%emt 0:00:58]} 38. Qf2 {[%emt 0:01:45]} R8d7 {[%emt 0:01:02]} 39. Re1 {[%emt 0:00:42]} Qb5 {[%emt 0:00:56]} 40. Qd2 {[%emt 0:00:50]} a5 {[%emt 0:01:07]} 41. f4 {[%emt 0:13:07]} axb4 {[%emt 0:01:01]} 42. axb4 {[%emt 0:00:15]} f6 {[%emt 0:01:45]} 43. Kg2 {[%emt 0:04:31]} Qc6 {[%emt 0:01:00]} 44. Kf1 {[%emt 0:02:28]} g4 {[%emt 0:01:17]} 45. Qg2 {[%emt 0:01:11]} h5 {[%emt 0:00:59]} 46. e5 {[%emt 0:01:08]} Qxg2+ {[%emt 0:00:06]} 47. Kxg2 {[%emt 0:00:05]} fxe5 {[%emt 0:00:02]} 48. Rxe5 {[%emt 0:00:11]} Rd5 {[%emt 0:00:13]} 49. Re6 1/2-1/2

[Event "CZE National Open 2020"]
[Site "Kouty nad Desnou"]
[Date "2020.03.10"]
[Round "5.3"]
[White "Mrkvan, Frantisek"]
[Black "Steinbauer, Sebastian"]
[Result "1/2-1/2"]
[ECO "B38"]
[WhiteElo "1480"]
[BlackElo "1527"]
[Annotator "NA"]
[PlyCount "92"]
[EventDate "2020.03.07"]
[EventCountry "CZE"]
[SourceTitle "playchess.com"]
[Source "ChessBase"]
[SourceQuality "1"]
[TimeControl "5400+30"]

1. e4 {[%emt 0:00:00]} c5 {[%emt 0:00:00]} 2. Nf3 {[%emt 0:00:00]} Nc6 {[%emt 0:00:00]} 3. d4 {[%emt 0:00:00]} cxd4 {[%emt 0:00:04]} 4. Nxd4 {[%emt 0:00:00]} g6 {[%emt 0:00:13]} 5. c4 {[%emt 0:00:09]} Bg7 {[%emt 0:01:24]} 6. Be3 {[%emt 0:00:15]} Nf6 {[%emt 0:00:30]} 7. Nc3 {[%emt 0:00:06]} O-O {[%emt 0:00:39]} 8. f3 {[%emt 0:00:30]} d6 {[%emt 0:02:04]} 9. Qd2 {[%emt 0:00:49]} Bd7 {[%emt 0:03:09]} 10. Be2 {[%emt 0:00:37]} Re8 {[%emt 0:03:13]} 11. O-O {[%emt 0:00:52]} a6 {[%emt 0:03:50]} 12. Rac1 {[%emt 0:01:46]} Rc8 {[%emt 0:07:00]} 13. b3 {[%emt 0:01:39]} Qa5 {[%emt 0:07:03]} 14. a3 {[%emt 0:18:01]} Nh5 {[%emt 0:17:15]} 15. g4 {[%emt 0:26:02]} Nf4 {[%emt 0:05:04]} 16. Nxc6 {[%emt 0:01:57]} Nxe2+ {[%emt 0:00:11]} 17. Nxe2 {[%emt 0:00:16]} Qxd2 {[%emt 0:00:49]} 18. Nxe7+ {[%emt 0:00:43]} Rxe7 {[%emt 0:00:27]} 19. Bxd2 {[%emt 0:00:06]} Bb2 {[%emt 0:00:38]} 20. Rc2 {[%emt 0:01:02]} Bxa3 {[%emt 0:02:26]} 21. b4 {[%emt 0:00:21]} a5 {[%emt 0:00:13]} 22. bxa5 {[%emt 0:00:59]} Bc5+ {[%emt 0:00:52]} 23. Kg2 {[%emt 0:00:27]} Bc6 {[%emt 0:00:31]} 24. Ng3 {[%emt 0:01:54]} Ra8 {[%emt 0:01:09]} 25. Re1 {[%emt 0:04:31]} f6 {[%emt 0:02:04]} 26. Ra2 {[%emt 0:01:04]} b6 {[%emt 0:01:23]} 27. Be3 {[%emt 0:00:56]} Bb4 {[%emt 0:09:03]} 28. Rea1 {[%emt 0:04:50]} bxa5 {[%emt 0:00:36]} 29. Bd2 {[%emt 0:00:28]} Rb8 {[%emt 0:02:11]} 30. Bxb4 {[%emt 0:03:54]} axb4 {[%emt 0:00:19]} 31. Rb2 {[%emt 0:01:22]} Bd7 {[%emt 0:02:27]} 32. Rab1 {[%emt 0:00:41]} Be6 {[%emt 0:01:12]} 33. Rxb4 {[%emt 0:00:21]} Rc8 {[%emt 0:00:40]} 34. Rd1 {[%emt 0:03:35]} Rc6 {[%emt 0:01:12]} 35. Rb8+ {[%emt 0:00:14]} Kf7 {[%emt 0:02:14]} 36. Rd8 {[%emt 0:01:35]} Rxc4 {[%emt 0:01:06]} 37. R8xd6 {[%emt 0:00:25]} Rc2+ {[%emt 0:00:54]} 38. R1d2 {[%emt 0:00:51]} Rec7 {[%emt 0:00:43]} 39. Nf1 {[%emt 0:04:50]} Rxd2+ {[%emt 0:01:36]} 40. Rxd2 {[%emt 0:00:19]} Rd7 {[%emt 0:00:06]} 41. Rb2 {[%emt 0:01:13]} f5 {[%emt 0:00:21]} 42. exf5 {[%emt 0:02:05]} gxf5 {[%emt 0:00:10]} 43. Ne3 {[%emt 0:01:54]} fxg4 {[%emt 0:02:46]} 44. Nxg4 {[%emt 0:02:46]} Bxg4 {[%emt 0:00:29]} 45. fxg4 {[%emt 0:00:04]} h5 {[%emt 0:01:33]} 46. gxh5 {[%emt 0:08:18]} Rd5 {[%emt 0:00:18]} 1/2-1/2

[Event "CZE National Open 2020"]
[Site "Kouty nad Desnou"]
[Date "2020.03.10"]
[Round "5.4"]
[White "Svacina, Tobias"]
[Black "Cerny, Michael"]
[Result "0-1"]
[ECO "B33"]
[WhiteElo "1601"]
[BlackElo "1513"]
[Annotator "NA"]
[PlyCount "111"]
[EventDate "2020.03.07"]
[EventCountry "CZE"]
[SourceTitle "playchess.com"]
[Source "ChessBase"]
[SourceQuality "1"]
[TimeControl "5400+30"]

1. e4 {[%emt 0:00:00]} c5 {[%emt 0:00:00]} 2. Nf3 {[%emt 0:00:03]} Nc6 {[%emt 0:00:00]} 3. d4 {[%emt 0:00:26]} cxd4 {[%emt 0:00:00]} 4. Nxd4 {[%emt 0:00:29]} Nf6 {[%emt 0:00:00]} 5. Nc3 {[%emt 0:00:36]} g6 {[%emt 0:00:11]} 6. Be3 {[%emt 0:00:42]} Bg7 {[%emt 0:01:35]} 7. Be2 {[%emt 0:04:29]} O-O {[%emt 0:00:36]} 8. Nb3 {[%emt 0:00:40]} a6 {[%emt 0:12:27]} 9. f4 {[%emt 0:02:41]} d6 {[%emt 0:00:45]} 10. g4 {[%emt 0:03:38]} h6 {[%emt 0:11:21]} 11. h4 {[%emt 0:20:46]} b5 {[%emt 0:10:04]} 12. g5 {[%emt 0:05:48]} Nh7 {[%emt 0:00:38]} 13. h5 {[%emt 0:01:28]} e5 {[%emt 0:02:38]} 14. gxh6 {[%emt 0:03:04]} Bf6 {[%emt 0:00:27]} 15. hxg6 {[%emt 0:19:00]} fxg6 {[%emt 0:01:02]} 16. Qd5+ {[%emt 0:00:35]} Kh8 {[%emt 0:00:49]} 17. Qxc6 {[%emt 0:00:49]} Bh4+ {[%emt 0:00:11]} 18. Kd2 {[%emt 0:02:07]} Rb8 {[%emt 0:01:35]} 19. Rag1 {[%emt 0:03:13]} Bb7 {[%emt 0:03:26]} 20. Qb6 {[%emt 0:01:49]} Qe7 {[%emt 0:01:45]} 21. fxe5 {[%emt 0:03:23]} dxe5 {[%emt 0:00:25]} 22. Qxg6 {[%emt 0:01:21]} Rg8 {[%emt 0:04:56]} 23. Qh5 {[%emt 0:01:16]} Bg5 {[%emt 0:00:36]} 24. Bxg5 {[%emt 0:01:04]} Nxg5 {[%emt 0:00:06]} 25. Bd3 {[%emt 0:01:34]} Rbf8 {[%emt 0:00:43]} 26. Kc1 {[%emt 0:00:33]} b4 {[%emt 0:00:07]} 27. Nd5 {[%emt 0:00:37]} Qd8 {[%emt 0:01:29]} 28. Nc5 {[%emt 0:01:12]} Bxd5 {[%emt 0:00:27]} 29. exd5 {[%emt 0:01:10]} Qxd5 {[%emt 0:00:15]} 30. Ne4 Nxe4 {[%emt 0:02:20]} 31. Rxg8+ {[%emt 0:01:41]} Rxg8 {[%emt 0:00:11]} 32. h7 {[%emt 0:00:20]} Rf8 {[%emt 0:00:40]} 33. Rg1 {[%emt 0:03:07]} Nf6 {[%emt 0:09:45]} 34. Qh6 {[%emt 0:01:35]} Rf7 {[%emt 0:06:52]} 35. Qxf6+ {[%emt 0:00:48]} Rxf6 {[%emt 0:00:20]} 36. Rg8+ {[%emt 0:00:09]} Qxg8 {[%emt 0:00:07]} 37. hxg8=Q+ Kxg8 {[%emt 0:00:07]} 38. Kd2 {[%emt 0:01:06]} Kf7 {[%emt 0:01:56]} 39. Ke3 {[%emt 0:00:52]} Rd6 {[%emt 0:01:03]} 40. a4 {[%emt 0:02:19]} bxa3 {[%emt 0:05:27]} 41. bxa3 {[%emt 0:00:08]} a5 {[%emt 0:00:12]} 42. a4 {[%emt 0:00:52]} Rd4 {[%emt 0:01:03]} 43. Bb5 {[%emt 0:01:02]} Ke6 {[%emt 0:06:01]} 44. c3 {[%emt 0:00:35]} Rh4 {[%emt 0:01:08]} 45. c4 {[%emt 0:00:07]} Rd4 {[%emt 0:00:17]} 46. c5 {[%emt 0:00:07]} Ke7 {[%emt 0:00:33]} 47. c6 {[%emt 0:00:22]} Kd8 {[%emt 0:00:06]} 48. Ke2 {[%emt 0:00:43]} Kc7 {[%emt 0:01:35]} 49. Ke3 {[%emt 0:00:06]} Rb4 {[%emt 0:01:15]} 50. Kd3 {[%emt 0:00:17]} e4+ {[%emt 0:06:35]} 51. Ke3 {[%emt 0:00:49]} Kb6 {[%emt 0:00:50]} 52. Kf4 {[%emt 0:01:18]} Rxb5 {[%emt 0:01:19]} 53. axb5 {[%emt 0:00:05]} a4 {[%emt 0:00:03]} 54. Ke5 {[%emt 0:00:12]} Kc7 {[%emt 0:00:40]} 55. b6+ {[%emt 0:00:14]} Kxc6 {[%emt 0:00:25]} 56. Kd4 0-1